bitfinex/quotes_BTCUSD_20220226
["timestamp","ask_amount","ask_price","bid_price","bid_amount"]
[1645884299282,1.1087,39206.0,39198.0,0.17162525]
[1645884299483,0.0003401,39200.0,39198.0,0.17162525]
[1645884299682,0.0003401,39200.0,39192.0,0.05]
[1645884299923,0.0003401,39200.0,39193.0,0.377498]
[1645884300324,0.003,39204.0,39193.0,0.377498]
[1645884300726,0.00034011,39198.0,39197.0,0.14887093]
[1645884300922,0.00034011,39198.0,39197.0,0.52636893]
[1645884301424,1.0087,39206.0,39197.0,0.14887093]
[1645884301425,1.00540034,39206.0,39197.0,0.14887093]
[1645884301628,1.00540034,39206.0,39198.0,0.377498]
[1645884301824,0.0033,39208.0,39197.0,0.14887093]
[1645884302024,0.0003401,39199.0,39198.0,0.377498]
[1645884302824,0.47670795,39206.0,39190.0,0.1]
[1645884303025,0.2499,39202.0,39190.0,0.1]
[1645884303230,0.2499,39202.0,39190.0,0.05]
[1645884303670,0.47670795,39203.0,39191.0,0.14111129]
[1645884303872,0.1,39203.0,39191.0,0.14111129]
[1645884304273,0.1,39203.0,39195.0,0.00032781]
[1645884304476,0.377498,39200.0,39195.0,0.00032781]
[1645884304674,0.2499,39197.0,39195.0,0.00032781]
[1645884304874,0.377498,39196.0,39195.0,0.00032781]
[1645884305174,0.377498,39196.0,39187.0,0.05]
[1645884305375,0.17399364,39194.0,39185.0,0.002]
[1645884305577,0.17399364,39194.0,39181.0,0.13195752]
[1645884305578,0.17399364,39194.0,39181.0,0.23195752]
[1645884305779,0.17399364,39194.0,39182.0,0.0102]
[1645884306376,0.17399364,39194.0,39181.0,0.23195752]
[1645884306576,0.2499,39195.0,39186.0,0.00032785]
[1645884306781,0.016,39196.0,39186.0,0.00032785]
[1645884307524,0.015,39196.0,39186.0,0.00032785]
[1645884307724,0.015,39196.0,39182.0,0.3]
[1645884307925,0.015,39196.0,39189.0,0.00031738]
[1645884308124,0.015,39196.0,39182.0,0.29631738]
[1645884308328,0.015,39196.0,39181.0,0.13195752]
[1645884308525,0.115,39196.0,39181.0,0.13195752]
[1645884308726,0.015,39196.0,39181.0,0.13195752]
[1645884308925,0.1,39195.0,39181.0,0.13195752]
[1645884309326,0.1998,39193.0,39181.0,0.18195752]
[1645884309526,0.1,39195.0,39181.0,0.23195752]
[1645884309727,0.1514,39195.0,39181.0,0.23195752]
[1645884309926,0.2499,39192.0,39181.0,0.23195752]
[1645884310125,0.1514,39195.0,39181.0,0.23195752]
[1645884310326,0.1,39193.0,39181.0,0.13195752]
[1645884310726,0.1514,39193.0,39181.0,0.13195752]
[1645884311177,0.2499,39189.0,39181.0,0.13195752]
[1645884311380,0.2499,39189.0,39185.0,0.00034019]
[1645884312377,0.2499,39189.0,39178.0,0.05]
[1645884312578,0.2499,39189.0,39177.0,0.57555612]
[1645884312579,0.2499,39189.0,39185.0,0.00034019]
[1645884313582,0.2499,39189.0,39181.0,0.15117549]
[1645884313778,0.2499,39189.0,39185.0,0.00034019]
[1645884314781,0.2499,39189.0,39179.0,0.377498]
[1645884315032,0.2539,39189.0,39185.0,0.00034019]
[1645884316027,0.2539,39189.0,39181.0,0.13895237]
[1645884316235,0.2499,39189.0,39185.0,0.00034019]
[1645884317328,0.2499,39189.0,39177.0,0.57555612]
[1645884317528,0.13857058,39186.0,39185.0,0.00034019]
[1645884318527,0.13857058,39186.0,39177.0,0.57555612]
[1645884318774,0.2499,39189.0,39179.0,0.377498]
[1645884319069,0.2499,39189.0,39180.0,0.3]
[1645884319268,0.2499,39189.0,39178.0,0.3]
[1645884319470,0.2529,39189.0,39178.0,0.3]
[1645884319670,0.005,39189.0,39183.0,0.14537359]
[1645884320770,0.015,39191.0,39183.0,0.14537359]
[1645884321070,0.015,39191.0,39184.0,0.00034006]
[1645884322170,0.015,39191.0,39186.0,0.00034006]
[1645884323230,0.015,39191.0,39183.0,0.14537359]
[1645884323429,0.015,39191.0,39187.0,0.00034005]
[1645884324428,0.02,39191.0,39183.0,0.14537359]
[1645884324630,0.02,39191.0,39187.0,0.00034005]
[1645884325629,0.02,39191.0,39183.0,0.14537359]
[1645884325828,0.015,39191.0,39187.0,0.00034005]
[1645884326676,0.2499,39194.0,39187.0,0.00034005]
[1645884326872,0.2499,39194.0,39183.0,0.14537359]
[1645884327072,0.2499,39194.0,39187.0,0.00034005]
[1645884328074,0.2499,39194.0,39183.0,0.14537359]
[1645884328274,0.2499,39194.0,39187.0,0.00034006]
[1645884328475,0.2449,39194.0,39187.0,0.00034006]
[1645884329280,0.2449,39194.0,39183.0,0.14537359]
[1645884329477,0.2449,39194.0,39187.0,0.00034006]
[1645884330524,0.2489,39194.0,39183.0,0.14537359]
[1645884330727,0.2489,39194.0,39187.0,0.00034006]
[1645884331732,0.2489,39194.0,39183.0,0.14537359]
[1645884331932,0.2448,39193.0,39187.0,0.00034006]
[1645884332827,0.2448,39193.0,39183.0,0.14537359]
[1645884333127,0.2448,39193.0,39187.0,0.00034005]
[1645884333977,0.2448,39193.0,39183.0,0.14537359]
[1645884334182,0.2448,39193.0,39187.0,0.00034005]
[1645884334779,0.2348,39193.0,39187.0,0.00034005]
[1645884334978,0.16350459,39195.0,39187.0,0.00034005]
[1645884335180,0.1998,39195.0,39183.0,0.14537359]
[1645884335380,0.39813956,39194.0,39187.0,0.00034005]
[1645884335580,0.2346,39194.0,39187.0,0.00034005]
[1645884336385,0.2346,39194.0,39183.0,0.14537359]
[1645884336582,0.2346,39194.0,39187.0,0.00034006]
[1645884336783,0.2496,39194.0,39187.0,0.00034006]
[1645884337188,0.2346,39193.0,39187.0,0.00034006]
[1645884337627,0.2346,39193.0,39180.0,0.3102]
[1645884337827,0.2346,39193.0,39187.0,0.00034005]
[1645884338227,0.2386,39193.0,39187.0,0.00034005]
[1645884338828,0.2386,39193.0,39183.0,0.16798283]
[1645884339029,0.2386,39193.0,39187.0,0.00034005]
[1645884339530,0.2346,39193.0,39187.0,0.00034005]
[1645884340130,0.2346,39193.0,39183.0,0.16798283]
[1645884340431,0.2346,39193.0,39187.0,0.00034005]
[1645884341283,0.2346,39193.0,39183.0,0.16798283]
[1645884341484,0.2346,39193.0,39187.0,0.00034005]
[1645884343681,0.2346,39193.0,39184.0,0.3]
[1645884343882,0.2346,39193.0,39187.0,0.00034005]
[1645884346035,0.2346,39193.0,39183.0,0.17300129]
[1645884346236,0.2346,39193.0,39185.0,0.00017279]
[1645884347237,0.2346,39193.0,39183.0,0.16864022]
[1645884347441,0.2346,39193.0,39185.0,0.00032104]
[1645884348539,0.2346,39193.0,39184.0,0.3]
[1645884348777,0.2346,39193.0,39185.0,0.00032104]
[1645884349778,0.2346,39193.0,39183.0,0.16864022]
[1645884349981,0.2346,39193.0,39185.0,0.00031723]
[1645884350681,0.2366,39193.0,39185.0,0.00031723]
[1645884350879,0.2366,39193.0,39183.0,0.16864022]
[1645884351081,0.2366,39193.0,39185.0,0.00031723]
[1645884351679,0.2346,39193.0,39185.0,0.00031723]
[1645884352080,0.2346,39193.0,39183.0,0.16864022]
[1645884352281,0.2346,39193.0,39183.0,0.16357042]
[1645884352528,0.2366,39193.0,39183.0,0.08600415]
[1645884353125,0.2366,39193.0,39184.0,0.3]
[1645884353325,0.2366,39193.0,39183.0,0.08600415]
[1645884353826,0.2346,39193.0,39183.0,0.08600415]
[1645884354626,0.2356,39193.0,39183.0,0.08600415]
[1645884355031,0.23272381,39193.0,39183.0,0.08600415]
[1645884355829,0.23287252,39193.0,39183.0,0.08600415]
[1645884356482,0.23287252,39193.0,39183.0,0.08700415]
[1645884356483,0.23187252,39193.0,39183.0,0.08700415]
[1645884356681,0.0063808,39192.0,39183.0,0.08700415]
[1645884357081,0.0063808,39192.0,39183.0,0.08734423]
[1645884357881,0.0063808,39192.0,39183.0,0.08634423]
[1645884358081,0.0063808,39192.0,39183.0,0.08600415]
[1645884358281,0.0063808,39192.0,39183.0,0.08634423]
[1645884358505,0.0073808,39192.0,39183.0,0.08634423]
[1645884359382,0.0073808,39192.0,39183.0,0.08600415]
[1645884359687,0.0073808,39192.0,39184.0,0.3]
[1645884359929,0.0063808,39192.0,39184.0,0.3]
[1645884360129,0.0063808,39192.0,39183.0,0.08634423]
[1645884360530,0.0063808,39192.0,39184.0,0.001]
[1645884361432,0.0063808,39192.0,39189.0,0.14120377]
[1645884361630,0.0063808,39192.0,39184.0,0.001]
[1645884361831,0.0063808,39192.0,39181.0,0.3]
[1645884362032,0.0063808,39192.0,39183.0,0.00034008]
[1645884363032,0.0063808,39192.0,39181.0,0.46975961]
[1645884363232,0.0063808,39192.0,39183.0,0.00034008]
[1645884363877,0.15840457,39193.0,39183.0,0.00034008]
[1645884364279,0.15806458,39193.0,39181.0,0.46975961]
[1645884364478,0.15840458,39193.0,39183.0,0.00034008]
[1645884364680,0.15840458,39193.0,39183.0,0.00134008]
[1645884365483,0.15806458,39193.0,39183.0,0.001]
[1645884365679,0.15838073,39193.0,39187.0,0.14868535]
[1645884366478,0.16138073,39193.0,39187.0,0.14868535]
[1645884366681,0.16106458,39193.0,39187.0,0.14868535]
[1645884366882,0.16138073,39193.0,39187.0,0.14868535]
[1645884367730,0.15806458,39193.0,39187.0,0.14868535]
[1645884368134,0.15838073,39193.0,39187.0,0.14868535]
[1645884368933,0.15806458,39193.0,39187.0,0.14868535]
[1645884369334,0.15838209,39193.0,39187.0,0.14868535]
[1645884370136,0.15806458,39193.0,39187.0,0.14868535]
[1645884370640,0.16038209,39193.0,39187.0,0.14868535]
[1645884371477,0.16006458,39193.0,39187.0,0.14868535]
[1645884371675,0.15838209,39193.0,39187.0,0.14868535]
[1645884372476,0.16038209,39193.0,39187.0,0.14868535]
[1645884372677,0.16006458,39193.0,39187.0,0.14868535]
[1645884372877,0.160382,39193.0,39187.0,0.14868535]
[1645884373880,0.15806458,39193.0,39187.0,0.14868535]
[1645884374181,0.158382,39193.0,39187.0,0.14868535]
[1645884374581,0.160382,39193.0,39187.0,0.14868535]
[1645884375029,0.16006458,39193.0,39187.0,0.14868535]
[1645884375229,0.160382,39193.0,39187.0,0.06868535]
[1645884375429,0.160382,39193.0,39183.0,0.0003175]
[1645884375833,0.158382,39193.0,39183.0,0.0003175]
[1645884376232,0.15806458,39193.0,39182.0,0.3]
[1645884376431,0.158382,39193.0,39183.0,0.00031749]
[1645884376630,0.159382,39193.0,39183.0,0.00031749]
[1645884377432,0.15906458,39193.0,39182.0,0.46337664]
[1645884377634,0.159382,39193.0,39183.0,0.00031749]
[1645884377832,0.158382,39193.0,39183.0,0.00031749]
[1645884378683,0.15906458,39193.0,39182.0,0.16337664]
[1645884378878,0.159382,39193.0,39183.0,0.00031749]
[1645884379679,0.14086451,39190.0,39183.0,0.00031749]
[1645884379879,0.14086451,39190.0,39180.0,0.4102]
[1645884380080,0.14086451,39190.0,39183.0,0.00031749]
[1645884380679,0.158382,39193.0,39183.0,0.00031749]
[1645884381085,0.15806458,39193.0,39180.0,0.4122]
[1645884381282,0.158382,39193.0,39183.0,0.00031749]
[1645884381683,0.16295371,39191.0,39183.0,0.00031749]
[1645884382282,0.16295371,39191.0,39180.0,0.50880415]
[1645884382526,0.16295371,39191.0,39183.0,0.00231749]
[1645884383126,0.15838199,39193.0,39183.0,0.00231749]
[1645884383328,0.15806458,39193.0,39183.0,0.002]
[1645884383632,0.15838199,39193.0,39183.0,0.00231749]
[1645884383827,0.15838199,39193.0,39183.0,0.00031749]
[1645884384629,0.15806458,39193.0,39183.0,0.002]
[1645884384830,0.15806458,39193.0,39183.0,0.00231749]
[1645884384831,0.158382,39193.0,39183.0,0.00231749]
[1645884385831,0.15806458,39193.0,39180.0,0.45880415]
[1645884386030,0.1641374,39189.0,39183.0,0.00031749]
[1645884386482,0.1641374,39189.0,39183.0,0.00231749]
[1645884387082,0.17306458,39193.0,39183.0,0.002]
[1645884387282,0.17338199,39193.0,39183.0,0.00231749]
[1645884387782,0.17338199,39193.0,39183.0,0.00031749]
[1645884388282,0.17019008,39192.0,39180.0,0.45880415]
[1645884388482,0.17019008,39192.0,39183.0,0.00031749]
[1645884389482,0.17019008,39192.0,39180.0,0.45880415]
[1645884389683,0.17019008,39192.0,39183.0,0.00031749]
[1645884390636,0.17019008,39192.0,39180.0,0.45880415]
[1645884390835,0.17019008,39192.0,39183.0,0.00031749]
[1645884391232,0.17019008,39192.0,39183.0,0.00131749]
[1645884391834,0.17019008,39192.0,39183.0,0.001]
[1645884392035,0.17019008,39192.0,39183.0,0.00131749]
[1645884392238,0.17019008,39192.0,39183.0,0.00031749]
[1645884393039,0.17019008,39192.0,39183.0,0.001]
[1645884393241,0.17019008,39192.0,39183.0,0.00131749]
[1645884394279,0.17019008,39192.0,39179.0,0.26917919]
[1645884394479,0.17019008,39192.0,39183.0,0.00031749]
[1645884395080,0.17119008,39192.0,39183.0,0.00031749]
[1645884395380,0.17119008,39192.0,39180.0,0.3]
[1645884395582,0.17119008,39192.0,39183.0,0.00031749]
[1645884396283,0.17019008,39192.0,39183.0,0.00031749]
[1645884396687,0.18519008,39192.0,39180.0,0.3]
[1645884396884,0.18519008,39192.0,39183.0,0.00031749]
[1645884397084,0.18619008,39192.0,39183.0,0.00031749]
[1645884397732,0.18619008,39192.0,39180.0,0.3]
[1645884397933,0.18619008,39192.0,39183.0,0.00031749]
[1645884398335,0.18519008,39192.0,39183.0,0.00031749]
[1645884398933,0.18619008,39192.0,39179.0,0.55897919]
[1645884399132,0.18619008,39192.0,39180.0,0.3]
[1645884400236,0.18519008,39192.0,39180.0,0.3]
[1645884400433,0.18533884,39192.0,39180.0,0.3]
[1645884401199,0.18633884,39192.0,39179.0,0.1229]
[1645884401399,0.18619008,39192.0,39179.0,0.1229]
[1645884401600,0.18653,39192.0,39182.0,0.00034]
[1645884402599,0.18519008,39192.0,39180.0,0.14893892]
[1645884402798,0.18553,39192.0,39182.0,0.00034001]
[1645884402998,0.377498,39191.0,39182.0,0.00134001]
[1645884403200,0.427498,39190.0,39182.0,0.00134001]
[1645884403402,0.0514,39189.0,39182.0,0.00134001]
[1645884403599,0.377498,39188.0,39182.0,0.00134001]
[1645884403799,0.0514,39187.0,39182.0,0.001]
[1645884403998,0.377498,39186.0,39182.0,0.00134]
[1645884404199,0.54322,39183.0,39182.0,0.00034]
[1645884405042,0.54422,39183.0,39172.0,0.72837893]
[1645884405238,0.166722,39183.0,39181.0,0.00034]
[1645884405438,0.377498,39182.0,39181.0,0.00034]
[1645884405838,0.166722,39183.0,39181.0,0.00034]
[1645884406038,0.377498,39182.0,39181.0,0.00034]
[1645884406238,0.377498,39182.0,39172.0,0.72837893]
[1645884406439,0.0514,39186.0,39180.0,0.00034]
[1645884406644,0.377498,39185.0,39180.0,0.00034]
[1645884406842,0.8514,39184.0,39171.0,0.33826616]
[1645884407043,0.377498,39182.0,39169.0,0.04]
[1645884407247,0.0514,39181.0,39169.0,0.04]
[1645884407444,0.377498,39180.0,39169.0,0.04]
[1645884407643,0.1578,39175.0,39169.0,0.04]
[1645884407844,0.428898,39174.0,39169.0,0.04]
[1645884408043,0.0102,39173.0,39169.0,0.04]
[1645884408241,0.377498,39172.0,39169.0,0.04]
[1645884408440,0.377388,39172.0,39169.0,0.04]
[1645884408684,0.0514,39173.0,39169.0,0.04]
[1645884408881,0.377557,39172.0,39169.0,0.19257086]
[1645884409181,0.378557,39172.0,39169.0,0.18757086]
[1645884409784,0.378557,39172.0,39169.0,0.035]
[1645884409981,0.378557,39172.0,39169.0,0.03293953]
[1645884410986,0.372267,39172.0,39169.0,0.0326]
[1645884411182,0.372267,39172.0,39169.0,0.03293953]
[1645884411782,0.445857,39172.0,39169.0,0.03293953]
[1645884412288,0.444857,39172.0,39169.0,0.0326]
[1645884412544,0.444857,39172.0,39169.0,0.00033953]
[1645884412545,1.577557,39170.0,39169.0,0.00033953]
[1645884412740,1.689157,39170.0,39169.0,0.00033953]
[1645884412940,1.85547418,39170.0,39169.0,0.00033953]
[1645884413241,3.24357418,39170.0,39169.0,0.00033953]
[1645884413440,3.24357418,39170.0,39158.0,0.05]
[1645884413441,1.39075818,39170.0,39158.0,0.05]
[1645884413639,1.39075818,39170.0,39161.0,0.13997]
[1645884413640,0.387762,39169.0,39161.0,0.13997]
[1645884413840,0.0514,39168.0,39161.0,0.13997]
[1645884414039,0.387762,39167.0,39161.0,0.13997]
[1645884414340,0.377562,39165.0,39161.0,0.13997]
[1645884414537,0.428962,39165.0,39161.0,0.13997]
[1645884414738,0.428962,39165.0,39161.0,0.14030844]
[1645884415739,0.428962,39165.0,39161.0,0.13997]
[1645884415940,0.428962,39165.0,39161.0,0.14030844]
[1645884416986,0.428962,39165.0,39161.0,0.13997]
[1645884417185,0.429962,39165.0,39161.0,0.14030844]
[1645884418189,0.429962,39165.0,39161.0,0.13997]
[1645884418388,0.429962,39165.0,39161.0,0.14030844]
[1645884418791,0.378562,39165.0,39161.0,0.14030844]
[1645884419490,0.378562,39165.0,39161.0,0.13997]
[1645884419691,0.378562,39165.0,39161.0,0.14030844]
[1645884420338,0.377562,39165.0,39161.0,0.14030844]
[1645884420535,0.377562,39165.0,39161.0,0.13997]
[1645884420738,0.377562,39165.0,39161.0,0.14030844]
[1645884421137,0.377562,39165.0,39161.0,0.00033844]
[1645884421138,0.878262,39165.0,39161.0,0.00033844]
[1645884421336,0.928262,39165.0,39161.0,0.00033844]
[1645884421537,0.1998,39163.0,39161.0,0.00033844]
[1645884421738,0.377562,39162.0,39152.0,0.1131]
[1645884421937,0.1998,39163.0,39160.0,0.00033845]
[1645884422137,0.377562,39162.0,39160.0,0.00033845]
[1645884422339,0.577408,39163.0,39162.0,0.19806073]
[1645884422742,0.377608,39163.0,39162.0,0.19806073]
[1645884422939,0.429008,39163.0,39162.0,0.19806073]
[1645884423342,0.529008,39163.0,39162.0,0.19806073]
[1645884423798,0.67531437,39163.0,39162.0,0.19806073]
[1645884424197,1.14799566,39163.0,39162.0,0.19806073]
[1645884424393,0.97531437,39163.0,39162.0,0.19806073]
[1645884424595,1.14799566,39163.0,39162.0,0.19806073]
[1645884425095,1.83250396,39163.0,39162.0,0.19806073]
[1645884425896,2.61310396,39163.0,39162.0,0.19806073]
[1645884426095,2.62330396,39163.0,39162.0,0.19806073]
[1645884426295,2.62969355,39163.0,39162.0,0.12057882]
[1645884426495,2.66734818,39163.0,39162.0,0.12057882]
[1645884426696,2.68234818,39163.0,39162.0,0.12057882]
[1645884426895,2.68134818,39163.0,39162.0,0.12057882]
[1645884427098,2.67234818,39163.0,39162.0,0.12057882]
[1645884427743,2.87214818,39163.0,39162.0,0.12057882]
[1645884428444,2.87114818,39163.0,39162.0,0.12057882]
[1645884428643,4.00486522,39163.0,39162.0,0.12057882]
[1645884428844,0.85601946,39162.0,39161.0,0.00031488]
[1645884429043,0.85601946,39162.0,39149.0,0.05]
[1645884429044,2.21491338,39162.0,39149.0,0.05]
[1645884429244,0.7806,39156.0,39130.0,0.273]
[1645884429444,0.4497,39152.0,39140.0,0.17720612]
[1645884429743,0.943565,39152.0,39140.0,0.17720612]
[1645884429943,0.50377992,39152.0,39140.0,0.17720612]
[1645884430143,0.95347992,39152.0,39140.0,0.17720612]
[1645884430344,0.65347992,39152.0,39140.0,0.17720612]
[1645884430548,0.65347992,39152.0,39150.0,0.00030447]
[1645884431191,0.50377992,39152.0,39150.0,0.00030447]
[1645884431389,0.36654629,39152.0,39146.0,0.12955319]
[1645884431592,0.193865,39152.0,39150.0,0.00031541]
[1645884432287,0.493865,39152.0,39150.0,0.00031541]
[1645884432490,0.193865,39152.0,39150.0,0.00031541]
[1645884432687,0.193865,39152.0,39146.0,0.12955319]
[1645884432888,0.193865,39152.0,39150.0,0.00016662]
[1645884433888,0.193865,39152.0,39146.0,0.12955319]
[1645884434089,0.193865,39152.0,39150.0,0.00017291]
[1645884434497,0.1578,39153.0,39150.0,0.00017291]
[1645884435142,0.1578,39153.0,39146.0,0.12955319]
[1645884435344,0.1578,39153.0,39150.0,0.00032159]
[1645884435542,0.1578,39153.0,39152.0,0.15343352]
[1645884436549,0.55375463,39163.0,39152.0,0.15343352]
[1645884436550,0.015,39159.0,39152.0,0.15343352]
[1645884436746,0.015,39159.0,39153.0,0.377608]
[1645884437748,0.015,39159.0,39154.0,0.00032115]
[1645884438550,0.015,39159.0,39158.0,0.51766708]
[1645884440592,0.17268129,39171.0,39159.0,0.04055]
[1645884440790,0.17268129,39171.0,39161.0,0.02555]
[1645884440995,0.17268129,39171.0,39160.0,0.527608]
[1645884440996,0.4497,39172.0,39167.0,0.02555]
[1645884441198,0.4497,39172.0,39171.0,0.02555]
[1645884441494,0.4497,39172.0,39171.0,0.504558]
[1645884441495,0.3895,39172.0,39171.0,0.504558]
[1645884442089,0.3895,39172.0,39171.0,0.554558]
[1645884442289,0.3,39184.0,39174.0,0.377608]
[1645884442540,0.00014862,39187.0,39176.0,0.377608]
[1645884443134,0.00014862,39187.0,39176.0,0.379608]
[1645884443336,0.1999,39177.0,39176.0,0.379608]
[1645884443737,0.44969099,39177.0,39176.0,0.379608]
[1645884444339,0.44969099,39177.0,39176.0,0.377608]
[1645884445339,0.44969099,39177.0,39176.0,0.379608]
[1645884446487,0.44969099,39177.0,39176.0,0.377608]
[1645884446886,0.44969099,39177.0,39176.0,0.429008]
[1645884447086,0.44969099,39177.0,39176.0,0.431008]
[1645884447888,0.00014003,39187.0,39176.0,0.431008]
[1645884448290,0.3,39188.0,39176.0,0.429008]
[1645884448489,0.00014068,39187.0,39176.0,0.429008]
[1645884449189,0.00014068,39187.0,39176.0,0.431008]
[1645884449389,0.3,39188.0,39176.0,0.431008]
[1645884449589,0.3,39188.0,39178.0,0.00033002]
[1645884449791,0.00032995,39187.0,39179.0,0.377608]
[1645884450034,0.00032995,39187.0,39181.0,0.17267984]
[1645884450439,0.00032995,39187.0,39179.0,0.377608]
[1645884450635,0.15553605,39189.0,39179.0,0.377608]
[1645884450835,0.15553605,39189.0,39178.0,0.00033003]
[1645884451035,0.00032996,39187.0,39179.0,0.377608]
[1645884451236,0.00132996,39187.0,39179.0,0.377608]
[1645884451836,0.001,39187.0,39179.0,0.377608]
[1645884452037,0.00131736,39187.0,39179.0,0.377608]
[1645884452240,0.00131736,39187.0,39178.0,0.15119079]
[1645884452438,0.00031736,39187.0,39179.0,0.377608]
[1645884452638,0.00031736,39187.0,39178.0,0.15119079]
[1645884453039,0.15553605,39189.0,39178.0,0.15087336]
[1645884453240,0.00031736,39187.0,39178.0,0.15119079]
[1645884454286,0.15553605,39189.0,39178.0,0.15087336]
[1645884454487,0.00031736,39187.0,39178.0,0.15119079]
[1645884454687,0.00031736,39187.0,39179.0,0.377608]
[1645884455289,0.00031736,39187.0,39179.0,0.6742802]
[1645884455489,0.015,39189.0,39181.0,0.377608]
[1645884455687,0.015,39189.0,39183.0,0.377608]
[1645884455688,0.00031821,39187.0,39183.0,0.377608]
[1645884455887,0.00031821,39187.0,39184.0,0.17749019]
[1645884456088,0.00031821,39187.0,39185.0,0.377608]
[1645884456289,0.00131821,39187.0,39186.0,0.377608]
[1645884456488,0.00131821,39187.0,39186.0,0.429008]
[1645884456694,0.001,39187.0,39186.0,0.429008]
[1645884457540,0.00031821,39188.0,39186.0,0.429008]
[1645884457740,0.00031821,39188.0,39187.0,0.377608]
[1645884457943,0.0011,39192.0,39187.0,0.429008]
[1645884458245,0.0011,39192.0,39182.0,0.06382267]
[1645884458246,0.00012775,39189.0,39170.0,0.2572]
[1645884458444,0.429008,39188.0,39174.0,0.1187]
[1645884458643,0.3,39187.0,39174.0,0.1187]
[1645884458839,0.193865,39186.0,39174.0,0.1187]
[1645884459041,0.377608,39184.0,39174.0,0.1187]
[1645884459243,0.16987288,39183.0,39174.0,0.1187]
[1645884459442,0.377608,39182.0,39172.0,0.16132137]
[1645884459642,0.3,39181.0,39172.0,0.16132137]
[1645884459940,0.3,39184.0,39172.0,0.16132137]
[1645884460141,0.29856157,39184.0,39172.0,0.16132137]
[1645884460543,0.30876157,39184.0,39176.0,0.00031844]
[1645884460744,0.377608,39183.0,39176.0,0.00031844]
[1645884460943,0.3,39182.0,39176.0,0.00031844]
[1645884461195,0.092465,39181.0,39176.0,0.00031844]
[1645884461399,0.3,39180.0,39172.0,0.002]
[1645884461598,0.3,39180.0,39177.0,0.00031844]
[1645884461803,0.377608,39179.0,39177.0,0.00031844]
[1645884462398,0.378608,39179.0,39177.0,0.00031844]
[1645884462598,0.378608,39179.0,39172.0,0.12831164]
[1645884462799,0.001,39179.0,39176.0,0.00031844]
[1645884462998,0.377608,39178.0,39176.0,0.00031844]
[1645884463801,0.377608,39178.0,39172.0,0.12631164]
[1645884463999,0.0102,39181.0,39175.0,0.00031845]
[1645884464199,0.377608,39180.0,39175.0,0.00031845]
[1645884464601,0.001,39178.0,39175.0,0.00031845]
[1645884464804,0.429008,39177.0,39175.0,0.00031845]
[1645884465043,0.092465,39175.0,39167.0,0.002]
[1645884465236,0.3102,39176.0,39167.0,0.002]
[1645884465237,0.377608,39173.0,39167.0,0.002]
[1645884465438,0.092465,39171.0,39167.0,0.002]
[1645884465636,0.3514,39172.0,39167.0,0.002]
[1645884465637,0.377608,39169.0,39167.0,0.002]
[1645884466036,0.441497,39169.0,39167.0,0.002]
[1645884466441,0.377608,39169.0,39166.0,0.00031849]
[1645884467538,0.377608,39169.0,39159.0,0.17752745]
[1645884467738,0.3,39168.0,39166.0,0.00031849]
[1645884467938,0.377608,39167.0,39166.0,0.00031849]
[1645884468438,0.677608,39167.0,39166.0,0.00031849]
[1645884468682,0.678608,39167.0,39159.0,0.17752745]
[1645884468890,0.678608,39167.0,39165.0,0.0003185]
[1645884469884,0.678608,39167.0,39159.0,0.17752745]
[1645884470086,0.678608,39167.0,39164.0,0.0003185]
[1645884470284,0.677608,39167.0,39164.0,0.0003185]
[1645884470486,0.679608,39167.0,39164.0,0.0003185]
[1645884470684,0.67932019,39167.0,39164.0,0.0003185]
[1645884471087,0.67932019,39167.0,39159.0,0.17752745]
[1645884471290,0.0616,39166.0,39164.0,0.00031851]
[1645884471586,0.67758,39165.0,39164.0,0.00031851]
[1645884471786,0.73918,39165.0,39164.0,0.00031851]
[1645884472441,0.09221,39164.0,39163.0,0.00031851]
[1645884473443,0.09221,39164.0,39160.0,0.17545346]
[1645884473644,0.09221,39164.0,39162.0,0.00031852]
[1645884474046,0.14361,39164.0,39162.0,0.00031852]
[1645884474450,0.14461,39164.0,39162.0,0.00031852]
[1645884474752,0.14461,39164.0,39160.0,0.17545346]
[1645884474945,0.14461,39164.0,39161.0,0.00031852]
[1645884475746,0.14361,39164.0,39161.0,0.00031852]
[1645884475947,0.14361,39164.0,39160.0,0.17545346]
[1645884476190,0.14361,39164.0,39161.0,0.00031852]
[1645884476589,0.14361,39164.0,39160.0,0.17545346]
[1645884477396,0.0514,39164.0,39161.0,0.3]
[1645884477596,0.015,39168.0,39161.0,0.3]
[1645884477597,0.015,39168.0,39162.0,0.37758]
[1645884477792,0.015,39168.0,39164.0,0.37758]
[1645884478592,0.016,39168.0,39167.0,0.37758]
[1645884479794,0.015,39168.0,39167.0,0.37758]
[1645884480645,0.016,39168.0,39167.0,0.37758]
[1645884481251,0.016,39168.0,39161.0,0.3]
[1645884481448,0.016,39168.0,39162.0,0.37758]
[1645884481648,0.016,39168.0,39162.0,0.33608006]
[1645884481946,0.015,39168.0,39162.0,0.33608006]
[1645884482651,0.015,39168.0,39163.0,0.3]
[1645884482949,0.015,39168.0,39164.0,0.37758]
[1645884483148,0.015,39168.0,39166.0,0.377577]
[1645884483990,0.115,39168.0,39166.0,0.377577]
[1645884485890,0.115,39168.0,39167.0,0.17784505]
[1645884486090,0.115,39168.0,39167.0,0.55542205]
[1645884486692,0.1,39168.0,39167.0,0.55542205]
[1645884487947,9.1,39168.0,39167.0,0.55542205]
[1645884488545,9.1,39168.0,39167.0,0.85542205]
[1645884488546,8.5244772,39168.0,39167.0,0.85542205]
[1645884488744,8.5244772,39168.0,39167.0,0.55542205]
[1645884488944,8.5244772,39168.0,39167.0,0.85542205]
[1645884489545,8.5244772,39168.0,39167.0,0.55542205]
[1645884489747,8.5244772,39168.0,39167.0,0.90542205]
[1645884490745,8.52418939,39168.0,39167.0,0.95682205]
[1645884492097,8.52418939,39168.0,39167.0,0.98237205]
[1645884493103,8.52418939,39168.0,39167.0,1.13237205]
[1645884493294,8.02418939,39168.0,39167.0,1.91297205]
[1645884493493,8.02418939,39168.0,39167.0,1.14258205]
[1645884494293,8.02418939,39168.0,39167.0,2.12318205]
[1645884494593,8.02418939,39168.0,39167.0,2.76568205]
[1645884494794,7.30497814,39168.0,39167.0,2.76568205]
[1645884495038,2.26449051,39168.0,39167.0,2.76568205]